bitfinex/quotes_ETHUSD_20240722
["timestamp","ask_amount","ask_price","bid_price","bid_amount"]
[1721675907263,2.86681,3488.2,3487.6,2.86727]
[1721675907667,2.86681,3488.2,3487.4,2.8674]
[1721675907668,2.8669,3488.1,3487.4,2.8674]
[1721675907876,2.86681,3488.2,3487.3,2.86753]
[1721675907877,2.86698,3488.0,3487.3,2.86753]
[1721675908062,2.86705,3487.9,3487.3,2.86753]
[1721675908248,2.86705,3487.9,3487.1,2.86767]
[1721675908453,2.86699,3488.0,3487.2,4.428991]
[1721675908658,2.86697,3488.0,3487.3,2.8675]
[1721675909749,2.86689,3488.1,3487.4,2.86744]
[1721675910253,2.86681,3488.2,3487.5,2.86732]
[1721675910483,2.8669,3488.1,3487.5,2.86732]
[1721675910783,2.8669,3488.1,3487.3,2.86747]
[1721675911088,2.86705,3488.0,3487.4,2.86745]
[1721675911388,2.86707,3487.9,3487.3,0.9774801]
[1721675911676,2.3979,3488.4,3487.3,0.9774801]
[1721675911677,2.86698,3488.0,3487.3,2.86752]
[1721675911839,2.86689,3488.1,3487.3,2.86752]
[1721675912040,2.86706,3487.9,3487.0,2.4782]
[1721675912344,2.86702,3488.0,3487.1,2.86766]
[1721675912573,2.86706,3487.9,3487.1,2.86766]
[1721675912877,2.86711,3487.9,3487.0,5.34599]
[1721675913099,2.3979,3488.4,3486.8,2.86792]
[1721675913256,2.3979,3488.4,3486.6,2.86804]
[1721675913257,2.8676,3487.3,3486.6,2.86804]
[1721675913474,2.86765,3487.2,3486.7,1.535228]
[1721675913782,2.86765,3487.2,3486.5,2.8682]
[1721675914153,2.86771,3487.1,3486.5,2.8682]
[1721675914365,2.86771,3487.1,3486.3,2.4803]
[1721675914541,2.86771,3487.1,3486.4,2.86828]
[1721675914745,2.8675,3487.4,3486.5,3.403008]
[1721675914958,2.86768,3487.2,3486.5,2.86815]
[1721675915178,2.86768,3487.2,3486.5,2.86819]
[1721675915340,2.86768,3487.2,3486.6,2.8681]
[1721675916052,2.8675,3487.4,3486.6,2.8681]
[1721675916053,2.86755,3487.3,3486.6,2.8681]
[1721675916796,2.86764,3487.2,3486.4,2.86828]
[1721675917102,2.86764,3487.2,3486.6,2.8681]
[1721675917393,2.86775,3487.1,3486.5,0.821699]
[1721675917603,2.86775,3487.1,3486.5,3.689899]
[1721675918101,2.86776,3487.1,3486.5,3.689899]
[1721675918260,2.86776,3487.1,3486.5,2.8682]
[1721675919306,2.86776,3487.1,3486.3,2.86831]
[1721675919604,2.86776,3487.1,3486.4,2.86821]
[1721675919955,2.86784,3487.0,3486.4,2.86821]
[1721675920163,2.86759,3487.3,3486.5,2.8682]
[1721675920494,2.86771,3487.2,3486.4,4.181888]
[1721675920713,5.13162,3487.6,3486.4,4.181888]
[1721675920714,2.86759,3487.3,3486.5,2.86819]
[1721675920860,2.86744,3487.5,3486.7,2.86803]
[1721675921200,2.86721,3487.7,3487.1,2.86766]
[1721675921405,2.8674,3487.5,3486.9,2.86781]
[1721675921906,2.8674,3487.5,3486.4,3.529668]
[1721675921907,2.86759,3487.3,3486.7,2.86799]
[1721675922400,2.86741,3487.5,3486.7,2.86799]
[1721675922589,2.86741,3487.5,3486.9,2.86782]
[1721675922764,2.86741,3487.5,3486.9,3.441401]
[1721675924587,2.8675,3487.4,3486.9,0.573581]
[1721675924788,2.86741,3487.5,3486.9,0.573581]
[1721675925099,2.86761,3487.3,3486.7,2.86799]
[1721675925826,2.86761,3487.3,3486.4,1.313668]
[1721675925827,2.8674,3487.5,3486.9,2.86783]
[1721675927299,2.86747,3487.4,3486.9,2.86783]
[1721675927499,3.0,3487.6,3486.9,2.86783]
[1721675927720,2.86742,3487.5,3487.0,2.86777]
[1721675927888,2.86742,3487.5,3486.8,2.86788]
[1721675928089,2.86748,3487.4,3486.8,3.441467]
[1721675928290,2.86748,3487.4,3486.9,2.86786]
[1721675928529,2.86748,3487.4,3486.8,0.573587]
[1721675928530,2.86748,3487.4,3486.8,3.441537]
[1721675928708,2.86738,3487.5,3486.8,0.573587]
[1721675929035,2.86738,3487.5,3487.0,2.86778]
[1721675929192,2.86738,3487.5,3486.8,0.573587]
[1721675929391,2.86738,3487.5,3486.9,2.86781]
[1721675929696,2.86747,3487.4,3486.7,2.86797]
[1721675930036,2.86755,3487.3,3486.6,2.86806]
[1721675930189,2.86755,3487.3,3486.6,3.5078328]
[1721675930390,2.86738,3487.5,3486.6,3.5078428]
[1721675930613,2.86738,3487.5,3486.8,2.8679]
[1721675930803,2.86738,3487.5,3486.6,3.5078428]
[1721675931012,2.86738,3487.5,3486.7,0.70375108]
[1721675931339,3.0,3487.6,3487.0,2.86779]
[1721675931501,5.86732,3487.6,3486.9,2.86781]
[1721675931832,2.86726,3487.7,3487.1,2.86765]
[1721675932133,3.0,3487.6,3487.1,2.86765]
[1721675932525,5.8673,3487.6,3487.0,2.86772]
[1721675932691,5.8673,3487.6,3487.0,3.22486711]
[1721675933087,2.86751,3487.4,3487.0,0.35714711]
[1721675933387,2.86756,3487.3,3486.8,2.86793]
[1721675933988,2.86756,3487.3,3486.4,1.313668]
[1721675934416,2.86756,3487.3,3486.6,2.86808]
[1721675934625,2.86742,3487.5,3486.8,2.86787]
[1721675934833,2.86708,3487.9,3487.2,2.86761]
[1721675935132,2.86724,3487.7,3486.9,2.86787]
[1721675935297,2.86743,3487.5,3486.9,2.86787]
[1721675935517,2.86747,3487.4,3486.9,2.86787]
[1721675935866,2.86727,3487.7,3486.9,2.86781]
[1721675935867,2.8674,3487.5,3486.9,2.86781]
[1721675936015,5.73484,3487.5,3486.9,2.86781]
[1721675936405,2.8674,3487.5,3486.9,2.86781]
[1721675936710,2.86742,3487.5,3486.9,3.4700697]
[1721675937045,2.86763,3487.2,3486.8,0.286787]
[1721675937260,2.86763,3487.2,3486.4,3.529668]
[1721675937413,2.86784,3487.0,3486.4,4.181878]
[1721675937924,2.86771,3487.1,3486.5,2.8682]
[1721675938338,2.86764,3487.2,3486.6,2.86811]
[1721675938547,2.86764,3487.2,3486.6,3.5731088]
[1721675939554,2.86764,3487.2,3486.6,6.4411688]
[1721675939855,2.3477,3487.4,3486.7,2.86799]
[1721675940059,2.86755,3487.3,3486.7,2.86799]
[1721675940265,2.86743,3487.5,3486.9,2.86783]
[1721675940463,2.86747,3487.4,3486.6,3.5730688]
[1721675940767,2.86775,3487.1,3486.5,2.86819]
[1721675940918,2.86775,3487.1,3486.4,1.313668]
[1721675941557,2.86788,3486.9,3486.1,9.8959]
[1721675942059,2.86788,3486.9,3486.3,2.86836]
[1721675942615,2.86797,3486.8,3486.2,2.86844]
[1721675942856,2.86817,3486.6,3486.0,2.86857]
[1721675943119,3.0,3486.7,3486.0,2.86858]
[1721675943476,2.86833,3486.4,3485.8,2.86872]
[1721675943619,2.86833,3486.4,3485.6,10.2689]
[1721675943620,2.86846,3486.2,3485.6,10.2689]
[1721675944262,2.86829,3486.4,3485.6,10.2689]
[1721675944263,2.86837,3486.3,3485.6,10.2689]
[1721675944420,2.4687,3486.5,3485.7,2.86886]
[1721675944770,2.86831,3486.4,3485.8,2.86876]
[1721675944915,2.4687,3486.5,3485.9,2.86869]
[1721675945461,2.4687,3486.5,3485.7,2.86886]
[1721675945462,2.86833,3486.4,3485.7,2.86886]
[1721675945646,2.86839,3486.3,3485.7,2.86886]
[1721675946152,5.33695,3486.5,3485.7,5.73767]
[1721675946455,2.86842,3486.3,3485.6,10.26888]
[1721675946619,2.86842,3486.3,3485.7,3.3105855]
[1721675946960,2.8685,3486.2,3485.7,0.4417755]
[1721675947117,2.8685,3486.2,3485.6,10.26894]
[1721675947518,0.144,3486.3,3485.6,7.4]
[1721675947758,2.86874,3485.9,3485.6,7.4]
[1721675947989,2.86863,3486.0,3485.3,2.86914]
[1721675948272,2.86872,3485.9,3485.1,10.86404301]
[1721675948424,2.86872,3485.9,3485.2,1.90604613]
[1721675948766,2.86872,3485.9,3485.2,0.90817117]
[1721675948953,2.86872,3485.9,3485.3,2.86918]
[1721675949261,2.86858,3486.1,3485.4,2.86905]
[1721675949458,2.86845,3486.2,3485.7,2.86884]
[1721675949669,0.144,3486.3,3485.8,2.86877]
[1721675949823,0.144,3486.3,3485.6,2.86887]
[1721675949824,2.8685,3486.2,3485.6,2.86887]
[1721675950227,0.144,3486.3,3485.8,2.86878]
[1721675950468,0.144,3486.3,3485.7,2.86886]
[1721675950469,3.01242,3486.3,3485.7,2.86886]
[1721675950761,2.86862,3486.0,3485.4,2.86906]
[1721675950948,4.147355,3486.3,3485.5,2.869]
[1721675951152,3.55,3486.2,3485.2,3.12417117]
[1721675951462,3.01237,3486.3,3485.7,2.86881]
[1721675951671,5.86845,3486.2,3485.7,2.86881]
[1721675951864,0.144,3486.3,3485.7,2.86881]
[1721675952172,0.144,3486.3,3485.8,2.86871]
[1721675952370,0.144,3486.3,3485.8,5.73744]
[1721675952574,0.144,3486.3,3485.8,2.86873]
[1721675952729,0.144,3486.3,3485.9,2.86869]
[1721675953144,3.01237,3486.3,3485.7,2.86878]
[1721675953339,3.0,3486.2,3485.7,2.86878]
[1721675954766,2.86858,3486.1,3485.5,2.86896]
[1721675954948,2.86862,3486.0,3485.5,2.86896]
[1721675955288,2.86884,3485.8,3485.2,3.77742117]
[1721675955447,2.86884,3485.8,3485.1,7.4]
[1721675955448,2.86892,3485.7,3485.1,10.2693]
[1721675956148,2.86876,3485.9,3485.1,10.26931]
[1721675956351,2.86862,3486.0,3485.4,2.86906]
[1721675956652,2.86862,3486.0,3485.3,2.86911]
[1721675957039,2.86869,3485.9,3485.4,2.86909]
[1721675957246,2.86869,3485.9,3485.1,10.26931]
[1721675957561,2.86862,3486.0,3485.3,2.86915]
[1721675957761,2.86862,3486.0,3485.1,11.743551]
[1721675957954,2.86876,3485.9,3485.3,2.86919]
[1721675958154,2.86878,3485.8,3485.3,2.86919]
[1721675958354,2.86878,3485.8,3485.1,10.26928]
[1721675958566,2.86866,3486.0,3485.4,2.86906]
[1721675958769,2.86866,3486.0,3485.1,8.874238]
[1721675958967,2.86866,3486.0,3485.3,2.86913]
[1721675959182,2.86866,3486.0,3485.4,2.86903]
[1721675959572,2.86851,3486.2,3485.5,2.86901]
[1721675959775,3.55,3486.1,3485.4,2.86911]
[1721675959970,6.41854,3486.1,3485.4,2.86911]
[1721675960147,2.86862,3486.0,3485.4,2.86911]
[1721675960347,5.73731,3486.0,3485.4,2.86911]
[1721675960571,2.86862,3486.0,3485.4,2.86911]
[1721675961070,2.8687,3485.9,3485.3,2.86912]
[1721675962093,6.41857,3486.1,3485.3,2.86912]
[1721675962297,3.55,3486.1,3485.5,5.73799]
[1721675962607,0.144,3486.3,3485.5,5.73799]
[1721675962608,0.144,3486.3,3485.8,2.86873]
[1721675962806,0.144,3486.3,3485.6,2.86892]
[1721675962807,3.0124,3486.3,3485.6,2.86886]
[1721675962976,0.144,3486.3,3486.1,2.86847]
[1721675963311,0.144,3486.3,3486.2,2.86845]
[1721675963489,0.144,3486.3,3486.1,2.86851]
[1721675963693,0.144,3486.3,3485.7,5.27939]
[1721675963875,0.144,3486.3,3485.8,2.86872]
[1721675964076,0.144,3486.3,3485.7,2.9959189]
[1721675964077,0.144,3486.3,3485.9,2.86865]
[1721675964817,0.144,3486.3,3485.9,2.86864]
[1721675965313,0.144,3486.3,3486.0,2.86859]
[1721675966473,0.144,3486.3,3485.8,2.86871]
[1721675966474,0.144,3486.3,3485.8,2.8687]
[1721675966789,0.144,3486.3,3485.9,2.86867]
[1721675967006,0.144,3486.3,3485.8,4.53949279]
[1721675967311,0.144,3486.3,3485.9,2.86869]
[1721675967516,0.144,3486.3,3485.8,2.86872]
[1721675968012,3.01237,3486.3,3485.8,2.86872]
[1721675968394,3.01237,3486.3,3485.6,5.73777]
[1721675968591,3.01237,3486.3,3485.4,2.86906]
[1721675968592,2.86866,3486.0,3485.4,2.86906]
[1721675968793,2.8687,3485.9,3485.3,2.86914]
[1721675969020,2.86861,3486.0,3485.4,2.86905]
[1721675969195,2.86861,3486.0,3485.1,7.4]
[1721675969398,2.86861,3486.0,3485.4,2.86906]
[1721675970118,3.41845,3486.2,3485.5,2.86898]
[1721675970320,3.01241,3486.3,3485.7,2.86883]
[1721675970679,3.0,3486.2,3485.5,5.73793]
[1721675971024,2.86854,3486.1,3485.5,2.86895]
[1721675971225,5.73714,3486.1,3485.5,2.86895]
[1721675971386,2.86862,3486.0,3485.5,2.86895]
[1721675971580,2.86862,3486.0,3485.5,2.86902]
[1721675972529,2.86862,3486.0,3485.3,2.86916]
[1721675972530,2.86874,3485.9,3485.3,2.86916]
[1721675972691,2.86862,3486.0,3485.3,2.86916]
[1721675973023,2.869,3485.6,3485.1,7.4]
[1721675973399,2.86883,3485.8,3485.1,7.4]
[1721675973400,2.86904,3485.5,3485.1,7.4]
[1721675973996,2.86912,3485.4,3485.1,7.4]
[1721675975505,2.86903,3485.5,3485.1,7.4]
[1721675976326,2.86912,3485.4,3485.1,7.4]
[1721675976595,2.8692,3485.3,3485.1,7.4]
[1721675977228,2.8695,3485.0,3484.4,2.86988]
[1721675977429,0.55,3485.2,3484.4,2.86988]
[1721675977627,2.8695,3485.0,3484.4,2.86988]
[1721675977845,2.86935,3485.1,3484.6,2.86976]
[1721675977996,5.86901,3485.6,3484.9,5.73892]
[1721675978197,5.86901,3485.6,3484.9,2.86946]
[1721675978430,2.86903,3485.5,3485.0,2.86943]
[1721675978638,3.0,3485.4,3485.0,2.86943]
[1721675978840,2.2798,3486.2,3485.2,2.86923]
[1721675979010,2.86869,3486.0,3485.3,2.86917]
[1721675979334,2.86867,3486.0,3485.4,2.86903]
[1721675979516,5.8687,3485.9,3485.4,2.86903]
[1721675979704,5.8687,3485.9,3485.2,2.86926]
[1721675979908,2.86879,3485.8,3485.2,2.86926]
[1721675980222,5.8687,3485.9,3485.0,2.8694]
[1721675980223,2.86887,3485.7,3485.0,2.8694]
[1721675980529,2.86886,3485.7,3485.0,1.5928934]
[1721675980716,2.86904,3485.5,3484.9,2.86947]
[1721675981298,3.0,3485.9,3484.9,2.86947]
[1721675981619,2.86908,3485.5,3484.9,2.86947]
[1721675982021,2.86887,3485.7,3485.0,2.86939]
[1721675982194,3.0,3486.0,3485.1,2.86933]
[1721675982195,2.86894,3485.6,3485.1,2.86933]
[1721675982797,2.86894,3485.6,3485.0,2.86943]
[1721675983037,2.86904,3485.5,3485.0,2.86943]
[1721675985117,2.86904,3485.5,3484.9,2.86949]
[1721675985118,2.86907,3485.5,3484.9,2.86949]
[1721675985443,2.86911,3485.4,3484.9,2.86949]
[1721675985623,2.869,3485.6,3485.0,2.86943]
[1721675985823,2.86891,3485.7,3485.0,2.86943]
[1721675985824,2.86903,3485.5,3485.0,2.86943]
[1721675986131,3.0,3486.0,3484.9,1.6163324]
[1721675986338,2.2798,3486.2,3485.4,2.86906]
[1721675986339,5.1483,3486.2,3485.4,2.86906]
[1721675986521,2.86867,3486.0,3485.5,2.86902]
[1721675986755,3.55,3486.1,3485.2,2.86922]
[1721675986756,2.8687,3485.9,3485.2,2.86922]
[1721675987032,2.8687,3485.9,3484.9,1.6163324]
[1721675987033,2.8689,3485.7,3485.1,2.86935]
[1721675987239,2.86891,3485.7,3484.9,1.6163324]
[1721675987542,2.86903,3485.5,3484.9,1.6163324]
[1721675987842,2.86903,3485.5,3484.9,2.86948]
[1721675988352,2.86915,3485.4,3484.7,10.843584]
[1721675988510,2.86921,3485.3,3484.7,13.13924]
[1721675988710,2.86921,3485.3,3484.7,10.26962]
[1721675989053,2.86903,3485.5,3484.8,2.8696]
[1721675989344,2.86911,3485.4,3484.8,2.8696]
[1721675990448,2.8692,3485.3,3484.7,7.4]
[1721675990810,5.73847,3485.3,3484.7,10.26968]
[1721675991011,2.86927,3485.2,3484.7,7.4]
[1721675992444,5.73862,3485.2,3484.7,7.4]
[1721675992647,2.86927,3485.2,3484.7,7.4]
[1721675992810,2.86927,3485.2,3484.4,5.73974]
[1721675992811,2.86941,3485.1,3484.4,5.73974]
[1721675993008,0.800747,3485.3,3483.8,3.46509301]
[1721675993009,2.86973,3484.7,3483.8,3.46509301]
[1721675993224,2.86973,3484.7,3484.1,2.87017]
[1721675993421,2.86978,3484.6,3484.0,2.87025]
[1721675993911,2.86986,3484.5,3483.8,2.87042]
[1721675994141,2.86986,3484.5,3483.7,2.4114]
[1721675994354,2.2773,3484.9,3483.8,2.87037]
[1721675994550,2.2773,3484.9,3483.9,2.87034]
[1721675994551,2.86973,3484.7,3483.9,2.87034]
[1721675994716,2.86973,3484.7,3484.0,2.87026]
[1721675994922,2.86987,3484.5,3484.0,2.87026]
[1721675995126,3.0,3484.6,3484.0,2.87026]
[1721675995326,5.86982,3484.6,3484.0,2.87026]
[1721675995811,5.86982,3484.6,3484.0,2.8702]
[1721675996009,3.0,3484.6,3484.1,2.87012]
[1721675996213,5.86982,3484.6,3483.8,2.87037]
[1721675996516,5.86982,3484.6,3484.0,2.87025]
[1721675998832,5.86982,3484.6,3483.7,2.4114]
[1721675999165,5.86982,3484.6,3483.9,2.87032]
[1721675999166,2.86994,3484.4,3483.9,2.87032]
[1721676000623,7.026496,3484.6,3483.4,5.31282]
[1721676000851,2.86986,3484.5,3483.4,5.31282]
[1721676001051,5.86977,3484.6,3484.0,5.74044]
[1721676001260,5.86977,3484.6,3484.0,2.8702]
[1721676001466,5.86977,3484.6,3483.8,2.87037]
[1721676001467,2.331,3485.3,3484.7,2.86968]
[1721676001790,1.844,3486.3,3484.5,2.86981]
[1721676001791,2.86916,3485.4,3484.5,2.86981]
[1721676001984,2.86928,3485.2,3484.5,2.86977]
[1721676002471,2.86916,3485.4,3484.3,2.216]
[1721676002637,2.86899,3485.6,3484.8,2.8696]
[1721676003178,3.0,3485.5,3485.0,2.86943]
[1721676003764,3.0,3485.5,3484.8,2.86954]
[1721676004060,3.456039,3485.4,3484.8,2.86954]
[1721676004276,3.0,3485.3,3484.8,2.86954]
[1721676004467,3.0,3485.3,3484.9,2.86951]
[1721676004766,2.869,3485.6,3484.9,2.86944]
[1721676004919,3.55,3485.5,3484.9,5.73889]
[1721676005122,3.41908,3485.5,3484.9,2.86951]
[1721676005443,3.928809,3485.4,3484.9,2.86951]
[1721676006177,6.797929,3485.4,3484.6,2.86974]
[1721676006376,6.797929,3485.4,3484.8,2.8696]
[1721676007461,6.797929,3485.4,3484.7,2.8696]
[1721676007652,2.8692,3485.3,3484.7,2.8696]
[1721676007851,3.0,3485.2,3484.8,2.8696]
[1721676008282,3.928809,3485.4,3484.8,2.8696]
[1721676008481,6.797959,3485.4,3484.8,2.8696]
[1721676008841,1.0216989,3485.3,3484.8,2.8696]
[1721676009867,3.0,3485.4,3484.8,2.86954]
[1721676010146,3.0,3485.4,3485.0,2.86937]
[1721676010341,3.55,3485.5,3484.6,2.86972]
[1721676010556,2.86885,3485.8,3485.0,2.86943]
[1721676010557,3.0,3485.4,3485.0,2.86943]
[1721676010990,3.0,3485.5,3485.0,2.86943]
[1721676011654,2.86903,3485.5,3484.8,5.73912]
[1721676011857,3.0,3485.4,3484.9,2.86951]
[1721676012266,5.86915,3485.4,3484.7,2.3505]
[1721676012482,5.86915,3485.4,3484.8,2.86959]
[1721676012783,2.86923,3485.3,3484.7,2.3505]
[1721676013079,3.0,3485.4,3484.7,2.3505]
[1721676013281,2.8692,3485.3,3484.8,2.8696]
[1721676013444,5.86902,3485.5,3484.8,2.86953]
[1721676013641,5.86902,3485.5,3484.8,5.73908]
[1721676013642,2.86911,3485.4,3484.8,5.73908]
[1721676013855,6.455922,3485.5,3484.9,2.8695]
[1721676014382,2.86919,3485.3,3484.8,2.86956]
[1721676014584,2.86911,3485.4,3484.8,2.86956]
[1721676014884,3.586902,3485.5,3484.8,2.86954]
[1721676015043,2.86902,3485.5,3485.0,2.86943]
[1721676015239,3.0,3485.4,3485.0,2.86943]
[1721676015745,2.86891,3485.7,3485.1,2.86927]
[1721676015746,3.0,3485.6,3485.1,2.86927]
[1721676016057,3.0,3485.6,3485.1,2.8693]
[1721676016557,3.30119881,3486.2,3485.3,2.3276]
[1721676016558,2.86849,3486.2,3485.3,2.3276]
[1721676016743,0.144,3486.3,3486.2,2.86845]
[1721676017246,0.144,3486.3,3486.0,2.86854]
[1721676017445,0.144,3486.3,3485.9,2.86865]
[1721676017446,0.144,3486.3,3486.1,2.86851]
[1721676018169,0.144,3486.3,3485.6,9.616]
[1721676018483,0.144,3486.3,3485.8,2.86874]
[1721676018643,3.01241,3486.3,3485.8,2.86874]
[1721676019253,3.01241,3486.3,3485.6,10.26886]
[1721676019480,3.01241,3486.3,3485.7,2.86882]
[1721676020183,3.01241,3486.3,3485.8,2.86875]
[1721676020544,2.86857,3486.1,3485.6,7.4]
[1721676020748,2.86886,3485.7,3485.6,7.4]
[1721676021091,2.86865,3486.0,3485.6,7.4]
[1721676021296,5.8134,3486.2,3485.6,7.4]
[1721676021297,2.8134,3486.2,3485.6,10.2689]
[1721676021589,3.0,3486.1,3485.8,2.86872]
[1721676021816,0.144,3486.3,3485.8,2.86872]
[1721676021817,3.01237,3486.3,3485.8,2.86872]
[1721676021990,3.0,3486.2,3485.8,2.86872]
[1721676022545,0.144,3486.3,3486.0,2.86857]
[1721676022875,0.144,3486.3,3486.1,2.86848]
[1721676023287,0.144,3486.3,3486.1,2.86847]
[1721676024005,0.144,3486.3,3486.1,2.88347]
[1721676024725,0.144,3486.3,3486.2,5.7369]
[1721676025359,0.144,3486.3,3486.2,7.9879]
[1721676026795,0.144,3486.3,3486.2,2.86845]
[1721676027567,0.144,3486.3,3486.2,5.7369]
[1721676029506,0.144,3486.3,3486.2,2.86845]
[1721676030372,0.144,3486.3,3486.1,0.015]
[1721676030373,0.144,3486.3,3486.1,2.88353]
[1721676030683,0.144,3486.3,3486.1,0.015]
[1721676031075,0.144,3486.3,3486.2,9.03432886]
[1721676031272,0.144,3486.3,3486.2,6.16587886]
[1721676031582,0.144,3486.3,3486.2,9.03432886]
[1721676035525,0.144,3486.3,3486.2,14.32007886]
[1721676035737,1e-08,3486.3,3486.2,14.32007886]
[1721676036111,5.22175,3487.9,3487.3,2.86751]
[1721676036282,6.030615,3487.9,3487.3,2.86751]
[1721676036777,6.41713,3487.8,3487.2,2.86761]
[1721676036984,2.86722,3487.7,3487.0,2.86772]
[1721676037281,3.0,3487.6,3487.1,2.86768]
[1721676037508,3.0,3487.6,3487.1,2.86765]
[1721676037913,2.8674,3487.5,3486.9,2.86783]
[1721676038096,2.8674,3487.5,3486.8,10.26791]
[1721676038097,5.73486,3487.5,3486.8,10.26791]
[1721676038306,0.6713565,3487.6,3486.9,2.86787]
[1721676038632,0.55,3487.5,3486.9,2.86787]
[1721676038996,5.735,3487.4,3486.8,7.4]
[1721676039192,2.86747,3487.4,3486.8,7.4]
[1721676039503,0.55,3487.5,3486.9,2.86785]
[1721676039707,0.55,3487.5,3486.9,5.73566]
[1721676039708,3.41739,3487.5,3486.9,5.73566]
[1721676039904,3.41739,3487.5,3486.9,2.86781]
[1721676040106,0.55,3487.5,3487.0,2.86775]
[1721676040284,0.55,3487.5,3487.1,2.86766]
[1721676041512,0.55,3487.5,3487.0,2.86779]
[1721676041687,0.55,3487.5,3487.1,2.86769]
[1721676042005,0.55,3487.6,3487.1,2.86765]
[1721676042210,0.55,3487.6,3487.1,2.86766]
[1721676042411,3.41731,3487.6,3487.1,2.86766]
[1721676043330,3.0,3487.7,3486.9,2.4261]
[1721676043507,8.22177,3487.9,3487.4,2.86746]
[1721676043692,0.55,3487.8,3487.4,2.86746]
[1721676043893,3.55,3487.8,3487.4,2.86746]
[1721676044097,3.55,3487.8,3486.9,2.4261]
[1721676044298,3.55,3487.8,3487.5,2.86732]
[1721676044535,3.0,3487.7,3487.4,2.86746]
[1721676044742,0.55,3487.8,3487.4,2.86746]
[1721676045035,3.41714,3487.8,3487.3,2.86747]
[1721676045238,3.41714,3487.8,3487.1,2.86768]
[1721676045239,5.86726,3487.7,3487.1,2.86764]
[1721676045532,3.0,3487.6,3486.9,2.86782]
[1721676045733,2.86742,3487.5,3486.9,2.86782]
[1721676045943,5.14314,3487.6,3487.1,2.86767]
[1721676046237,2.8674,3487.5,3487.0,2.86778]
[1721676046443,8.01047,3487.6,3487.0,2.86778]
[1721676046601,0.55,3487.5,3487.1,2.8677]
[1721676046804,3.41738,3487.5,3486.9,2.86782]
[1721676047149,2.86746,3487.4,3486.9,2.86782]
[1721676047327,2.86755,3487.3,3486.7,2.86796]
[1721676047505,2.86785,3487.0,3486.5,7.4]
[1721676047704,2.86768,3487.2,3486.5,2.86814]
[1721676047705,3.0,3487.2,3486.5,2.86814]
[1721676048021,0.856081,3487.3,3486.7,2.86803]
[1721676048232,3.856081,3487.3,3486.4,2.86823]
[1721676048535,3.55,3487.5,3487.1,2.86768]
[1721676048536,3.0,3487.2,3487.1,2.86768]
[1721676048832,3.55,3487.5,3487.1,2.8677]
[1721676049601,3.55,3487.5,3486.9,2.8678]
[1721676049602,3.0,3487.5,3486.9,2.86783]
[1721676049921,2.86735,3487.6,3487.0,2.86775]
[1721676050120,2.86735,3487.6,3486.9,2.86783]
[1721676050303,3.0,3487.5,3486.9,2.86783]
[1721676050503,3.0,3487.5,3487.1,2.86769]
[1721676050710,5.86744,3487.5,3486.9,2.86783]
[1721676050910,2.86751,3487.4,3486.7,5.34435]
[1721676051165,3.0,3487.5,3486.1,7.415]
[1721676051166,2.86819,3486.6,3486.1,7.415]
[1721676051305,2.86816,3486.6,3486.1,7.415]
[1721676051505,2.86821,3486.5,3486.1,7.415]
[1721676051712,2.86844,3486.3,3486.1,0.015]
[1721676052020,2.86845,3486.2,3486.1,0.015]
[1721676052911,2.86837,3486.3,3486.1,0.015]
[1721676053209,2.8683,3486.4,3486.1,0.015]
[1721676053410,2.267,3486.5,3486.1,0.015]
[1721676053758,2.86817,3486.6,3486.1,0.015]
[1721676053964,2.86833,3486.4,3486.1,0.015]
[1721676054421,2.86845,3486.2,3486.1,0.015]
[1721676054625,2.86838,3486.3,3486.1,0.015]
[1721676056163,5.73682,3486.3,3486.1,0.015]
[1721676056458,2.86838,3486.3,3486.1,0.015]
[1721676056658,5.73682,3486.3,3486.1,0.015]
[1721676056943,2.86845,3486.2,3486.1,0.015]
[1721676057509,9.610583,3486.2,3486.1,0.015]
[1721676057713,12.479033,3486.2,3486.1,0.015]
[1721676058350,9.610583,3486.2,3486.1,0.015]
[1721676058618,5.86845,3486.2,3486.1,0.015]
[1721676060327,3.0,3486.2,3486.1,0.015]
[1721676060535,3.0,3486.3,3486.1,0.015]
[1721676060916,3.0,3486.3,3486.1,2.88347]
[1721676061118,8.1276,3486.2,3486.1,0.015]
[1721676061319,9.24036,3486.2,3486.1,0.015]
[1721676061520,12.24036,3486.2,3486.1,0.015]
[1721676061734,11.1276,3486.2,3486.1,0.015]
[1721676064772,5.86845,3486.2,3486.1,0.015]
[1721676065125,8.7369,3486.2,3486.1,0.015]
[1721676065821,8.7369,3486.2,3486.1,0.159]
[1721676069422,11.60535,3486.2,3486.1,0.159]
[1721676069762,10.184259,3486.2,3486.1,0.159]
[1721676071773,13.052709,3486.2,3486.1,0.159]
[1721676074774,17.086809,3486.2,3486.1,0.159]
[1721676075664,19.955259,3486.2,3486.1,0.159]
[1721676075864,17.086809,3486.2,3486.1,0.159]
[1721676076060,17.636809,3486.2,3486.1,0.159]
[1721676077048,20.505259,3486.2,3486.1,0.159]
[1721676077552,17.636809,3486.2,3486.1,0.159]
[1721676077882,20.505259,3486.2,3486.1,0.159]